[Event "Late-Titled-Tuesday-Blitz-January-23-2024"]
[Site "Chess.com"]
[Date "2024.01.23"]
[Round "11"]
[White "jcmesafischer"]
[Black "The_Straightforward_Rook"]
[Result "0-1"]
[WhiteElo "2352"]
[BlackElo "2458"]
[TimeControl "180+1"]
[EndTime "16:02:39 PST"]
[Termination "The_Straightforward_Rook won on time"]

1. e4 {[%clk 0:02:55.7]} 1... c6 {[%clk 0:03:00.4]} 2. Nf3 {[%clk 0:02:55.4]}
2... d5 {[%clk 0:03:01.3]} 3. Nc3 {[%clk 0:02:56.1]} 3... dxe4 {[%clk
0:03:01.1]} 4. Nxe4 {[%clk 0:02:56.4]} 4... Nf6 {[%clk 0:03:01.6]} 5. Qe2 {[%clk
0:02:56.5]} 5... Nxe4 {[%clk 0:03:01.4]} 6. Qxe4 {[%clk 0:02:57.4]} 6... Qd5
{[%clk 0:03:01.9]} 7. Qh4 {[%clk 0:02:57.2]} 7... Qe6+ {[%clk 0:03:01.2]} 8. Be2
{[%clk 0:02:56.9]} 8... Qg4 {[%clk 0:03:01.7]} 9. Qg3 {[%clk 0:02:56.6]} 9...
Qxg3 {[%clk 0:03:02.3]} 10. hxg3 {[%clk 0:02:56.6]} 10... g6 {[%clk 0:03:03.2]}
11. d4 {[%clk 0:02:55.1]} 11... Bg7 {[%clk 0:03:03.2]} 12. Ne5 {[%clk
0:02:54.9]} 12... Nd7 {[%clk 0:02:58.9]} 13. f4 {[%clk 0:02:41.6]} 13... Nxe5
{[%clk 0:02:52.7]} 14. dxe5 {[%clk 0:02:31.7]} 14... Bf5 {[%clk 0:02:51.7]} 15.
c3 {[%clk 0:02:24.3]} 15... h5 {[%clk 0:02:51.4]} 16. Be3 {[%clk 0:02:23.1]}
16... b6 {[%clk 0:02:46.4]} 17. Bf3 {[%clk 0:02:05]} 17... Kd7 {[%clk
0:02:45.9]} 18. O-O-O+ {[%clk 0:01:38.1]} 18... Kc7 {[%clk 0:02:45.3]} 19. Rd4
{[%clk 0:01:31.3]} 19... Rad8 {[%clk 0:02:43.7]} 20. Rhd1 {[%clk 0:01:29.5]}
20... c5 {[%clk 0:02:42.6]} 21. Rxd8 {[%clk 0:01:26.6]} 21... Rxd8 {[%clk
0:02:43.5]} 22. Rxd8 {[%clk 0:01:26.5]} 22... Kxd8 {[%clk 0:02:44.4]} 23. Bd5
{[%clk 0:01:23.1]} 23... f6 {[%clk 0:02:42]} 24. exf6 {[%clk 0:01:12.9]} 24...
Bxf6 {[%clk 0:02:41.7]} 25. Kd2 {[%clk 0:01:11.9]} 25... Kc7 {[%clk 0:02:40.1]}
26. Bc4 {[%clk 0:01:05.4]} 26... Kd6 {[%clk 0:02:37.5]} 27. Bd3 {[%clk
0:01:05.2]} 27... e6 {[%clk 0:02:28.3]} 28. a4 {[%clk 0:00:55.8]} 28... Kd5
{[%clk 0:02:16.3]} 29. b3 {[%clk 0:00:47.6]} 29... e5 {[%clk 0:01:58]} 30. Bc4+
{[%clk 0:00:28.5]} 30... Kd6 {[%clk 0:01:57.5]} 31. b4 {[%clk 0:00:22.5]} 31...
Be4 {[%clk 0:01:51]} 32. Bf1 {[%clk 0:00:18.1]} 32... Bc6 {[%clk 0:01:50.7]} 33.
a5 {[%clk 0:00:15.6]} 33... Kd5 {[%clk 0:01:34.6]} 34. Be2 {[%clk 0:00:12]}
34... Be7 {[%clk 0:01:27.5]} 35. axb6 {[%clk 0:00:10.5]} 35... axb6 {[%clk
0:01:28.4]} 36. bxc5 {[%clk 0:00:10.3]} 36... bxc5 {[%clk 0:01:24.7]} 37. Bf3+
{[%clk 0:00:10.3]} 37... e4 {[%clk 0:01:24.9]} 38. Be2 {[%clk 0:00:08.3]} 38...
Bf6 {[%clk 0:01:25.3]} 39. c4+ {[%clk 0:00:07.3]} 39... Kd6 {[%clk 0:01:24.3]}
40. g4 {[%clk 0:00:07.6]} 40... h4 {[%clk 0:01:21.5]} 41. g5 {[%clk 0:00:07.9]}
41... Bd4 {[%clk 0:01:21.6]} 42. Bg4 {[%clk 0:00:06.4]} 42... Bd7 {[%clk
0:01:17.7]} 43. Bd1 {[%clk 0:00:03.4]} 43... Bf5 {[%clk 0:01:16.5]} 44. Ba4
{[%clk 0:00:03]} 44... Kc7 {[%clk 0:01:15.5]} 45. Be8 {[%clk 0:00:02.9]} 45...
Kb6 {[%clk 0:01:15]} 46. Bf7 {[%clk 0:00:02.1]} 46... Ka5 {[%clk 0:01:14.4]} 47.
Ke2 {[%clk 0:00:02.1]} 47... Kb4 {[%clk 0:01:14.6]} 48. Bf2 {[%clk 0:00:02.2]}
48... Kc3 {[%clk 0:01:13.7]} 49. Bxh4 {[%clk 0:00:02]} 49... e3 {[%clk
0:01:11.4]} 50. Be1+ {[%clk 0:00:02.9]} 50... Kc2 {[%clk 0:01:10.4]} 51. Bd5
{[%clk 0:00:02.3]} 51... Bd3+ {[%clk 0:01:10.5]} 52. Kf3 {[%clk 0:00:02.6]}
52... Kd1 {[%clk 0:01:10.1]} 53. Ba5 {[%clk 0:00:01.5]} 53... e2 {[%clk
0:01:09.4]} 54. g4 {[%clk 0:00:01.4]} 54... Bb2 {[%clk 0:01:04.6]} 55. f5 {[%clk
0:00:01.6]} 55... gxf5 {[%clk 0:01:03]} 56. gxf5 {[%clk 0:00:01.2]} 56... Bxf5
{[%clk 0:01:03.3]} 57. Bf7 {[%clk 0:00:01.2]} 57... Bc1 {[%clk 0:01:02.6]} 58.
g6 {[%clk 0:00:01.8]} 58... Bd2 {[%clk 0:01:00.5]} 0-1

[Event "Late-Titled-Tuesday-Blitz-January-23-2024"]
[Site "Chess.com"]
[Date "2024.01.23"]
[Round "11"]
[White "Eloist"]
[Black "Ducke13"]
[Result "1-0"]
[WhiteElo "2433"]
[BlackElo "2307"]
[TimeControl "180+1"]
[EndTime "16:02:39 PST"]
[Termination "Eloist won on time"]

1. e4 {[%clk 0:03:00.9]} 1... c5 {[%clk 0:03:00]} 2. Nf3 {[%clk 0:03:00.5]} 2...
d6 {[%clk 0:03:00.5]} 3. Bb5+ {[%clk 0:02:59]} 3... Nd7 {[%clk 0:03:00.2]} 4.
O-O {[%clk 0:02:58.3]} 4... a6 {[%clk 0:03:00.1]} 5. Bd3 {[%clk 0:02:57.3]} 5...
Ngf6 {[%clk 0:02:57.6]} 6. Re1 {[%clk 0:02:57]} 6... e6 {[%clk 0:02:56.6]} 7. c3
{[%clk 0:02:50.1]} 7... b5 {[%clk 0:02:56.6]} 8. Bc2 {[%clk 0:02:36.8]} 8... c4
{[%clk 0:02:51.5]} 9. b4 {[%clk 0:02:32.6]} 9... Bb7 {[%clk 0:02:38.9]} 10. a4
{[%clk 0:02:29.3]} 10... Be7 {[%clk 0:02:35.2]} 11. d4 {[%clk 0:02:27.3]} 11...
cxd3 {[%clk 0:02:35]} 12. Qxd3 {[%clk 0:02:22.9]} 12... bxa4 {[%clk 0:02:33.1]}
13. Bxa4 {[%clk 0:02:18.2]} 13... O-O {[%clk 0:02:33.5]} 14. Nbd2 {[%clk
0:02:08.2]} 14... Qc7 {[%clk 0:02:31.2]} 15. Bb2 {[%clk 0:01:57.7]} 15... Rfc8
{[%clk 0:02:29]} 16. c4 {[%clk 0:01:52.6]} 16... Bc6 {[%clk 0:01:48.5]} 17. Bc2
{[%clk 0:01:31.9]} 17... Qb7 {[%clk 0:01:44.6]} 18. Bc3 {[%clk 0:01:27.9]} 18...
h6 {[%clk 0:01:31.4]} 19. Reb1 {[%clk 0:01:22.2]} 19... d5 {[%clk 0:01:11.3]}
20. b5 {[%clk 0:01:01.7]} 20... axb5 {[%clk 0:01:02.5]} 21. cxb5 {[%clk
0:00:59.5]} 21... Rxa1 {[%clk 0:00:45.6]} 22. Bxa1 {[%clk 0:00:56.1]} 22... dxe4
{[%clk 0:00:41.3]} 23. Qf1 {[%clk 0:00:19.6]} 23... exf3 {[%clk 0:00:35.8]} 24.
bxc6 {[%clk 0:00:19.1]} 24... Qxc6 {[%clk 0:00:36.5]} 25. Rc1 {[%clk 0:00:15.3]}
25... fxg2 {[%clk 0:00:29]} 26. Qe2 {[%clk 0:00:15.4]} 26... g6 {[%clk
0:00:21.8]} 27. Bb2 {[%clk 0:00:13.8]} 27... Qb7 {[%clk 0:00:20.6]} 28. Bd4
{[%clk 0:00:12.2]} 28... Ba3 {[%clk 0:00:14.7]} 29. Rb1 {[%clk 0:00:12.2]} 29...
Qd5 {[%clk 0:00:10.7]} 30. Qd3 {[%clk 0:00:09.2]} 30... Rxc2 {[%clk 0:00:05.3]}
31. Qxc2 {[%clk 0:00:09.2]} 31... Qxd4 {[%clk 0:00:05.5]} 32. Nf3 {[%clk
0:00:06.1]} 32... Qe4 {[%clk 0:00:02.1]} 33. Ne1 {[%clk 0:00:06.1]} 1-0

[Event "Late-Titled-Tuesday-Blitz-January-23-2024"]
[Site "Chess.com"]
[Date "2024.01.23"]
[Round "11"]
[White "kai_nov"]
[Black "TheMagician"]
[Result "1-0"]
[WhiteElo "2281"]
[BlackElo "2143"]
[TimeControl "180+1"]
[EndTime "16:02:40 PST"]
[Termination "kai_nov won on time"]

1. d4 {[%clk 0:02:38.6]} 1... Nf6 {[%clk 0:02:58.5]} 2. c4 {[%clk 0:02:38.3]}
2... e6 {[%clk 0:02:57.4]} 3. Nc3 {[%clk 0:02:37.9]} 3... d5 {[%clk 0:02:53.5]}
4. cxd5 {[%clk 0:02:37.7]} 4... Nxd5 {[%clk 0:02:51.5]} 5. e4 {[%clk 0:02:37]}
5... Nxc3 {[%clk 0:02:51.6]} 6. bxc3 {[%clk 0:02:37.9]} 6... c5 {[%clk
0:02:51.9]} 7. a3 {[%clk 0:02:38.4]} 7... cxd4 {[%clk 0:02:43.3]} 8. cxd4 {[%clk
0:02:39.3]} 8... Be7 {[%clk 0:02:40.8]} 9. Nf3 {[%clk 0:02:37]} 9... O-O {[%clk
0:02:40.4]} 10. Bd3 {[%clk 0:02:25.9]} 10... b6 {[%clk 0:02:38.7]} 11. Qe2
{[%clk 0:02:20.6]} 11... Nc6 {[%clk 0:02:33]} 12. Bb2 {[%clk 0:02:18.6]} 12...
Bb7 {[%clk 0:02:13.3]} 13. O-O {[%clk 0:02:17.6]} 13... Rc8 {[%clk 0:02:11.9]}
14. Rad1 {[%clk 0:02:16.9]} 14... Re8 {[%clk 0:02:00.6]} 15. Rfe1 {[%clk
0:01:57.5]} 15... g6 {[%clk 0:01:37.2]} 16. h3 {[%clk 0:01:50.5]} 16... Bf6
{[%clk 0:01:31.6]} 17. Bb5 {[%clk 0:01:36]} 17... Na5 {[%clk 0:00:56]} 18. Bxe8
{[%clk 0:01:28.1]} 18... Qxe8 {[%clk 0:00:55.8]} 19. d5 {[%clk 0:01:27.8]} 19...
Bxb2 {[%clk 0:00:52.6]} 20. Qxb2 {[%clk 0:01:28.7]} 20... Nc4 {[%clk 0:00:48.9]}
21. Qb3 {[%clk 0:01:12.4]} 21... exd5 {[%clk 0:00:47.9]} 22. exd5 {[%clk
0:01:10.6]} 22... Qd8 {[%clk 0:00:40.6]} 23. Ne5 {[%clk 0:00:59.9]} 23... Nxe5
{[%clk 0:00:32.3]} 24. Rxe5 {[%clk 0:01:00.8]} 24... Qd6 {[%clk 0:00:30.4]} 25.
Qe3 {[%clk 0:00:58]} 25... Kg7 {[%clk 0:00:26.3]} 26. Re7 {[%clk 0:00:49.2]}
26... Ba6 {[%clk 0:00:15.1]} 27. Rxa7 {[%clk 0:00:40.1]} 27... Bc4 {[%clk
0:00:14.7]} 28. Qe7 {[%clk 0:00:29.6]} 28... Qxe7 {[%clk 0:00:14.2]} 29. Rxe7
{[%clk 0:00:29.1]} 29... Rd8 {[%clk 0:00:13.6]} 30. d6 {[%clk 0:00:29]} 30...
Be6 {[%clk 0:00:12.8]} 31. Rb7 {[%clk 0:00:28]} 31... Kf6 {[%clk 0:00:10.3]} 32.
Rxb6 {[%clk 0:00:27.8]} 32... Ke5 {[%clk 0:00:10.2]} 33. Ra6 {[%clk 0:00:26.3]}
33... Bd7 {[%clk 0:00:08.5]} 34. a4 {[%clk 0:00:25.5]} 34... f5 {[%clk 0:00:06]}
35. a5 {[%clk 0:00:25]} 35... Ke6 {[%clk 0:00:06.4]} 36. Rb6 {[%clk 0:00:25.1]}
36... Ra8 {[%clk 0:00:05.5]} 37. a6 {[%clk 0:00:25.2]} 37... Ra7 {[%clk
0:00:03.8]} 38. Re1+ {[%clk 0:00:25.2]} 38... Kd5 {[%clk 0:00:03.2]} 39. Re7
{[%clk 0:00:25.4]} 39... Kc5 {[%clk 0:00:01.4]} 40. Rb7 {[%clk 0:00:25.5]} 1-0

[Event "Late-Titled-Tuesday-Blitz-January-23-2024"]
[Site "Chess.com"]
[Date "2024.01.23"]
[Round "11"]
[White "Horokoskii"]
[Black "maurovargas01"]
[Result "1-0"]
[WhiteElo "2087"]
[BlackElo "1837"]
[TimeControl "180+1"]
[EndTime "16:02:40 PST"]
[Termination "Horokoskii won by checkmate"]

1. c4 {[%clk 0:00:27]} 1... e5 {[%clk 0:02:55.2]} 2. Nc3 {[%clk 0:00:26.9]} 2...
Nc6 {[%clk 0:02:53.6]} 3. Nf3 {[%clk 0:00:27.5]} 3... f5 {[%clk 0:02:50.3]} 4.
e4 {[%clk 0:00:26.4]} 4... d6 {[%clk 0:02:47.1]} 5. Bd3 {[%clk 0:00:24.6]} 5...
Nf6 {[%clk 0:02:43.3]} 6. O-O {[%clk 0:00:23.4]} 6... fxe4 {[%clk 0:02:41.8]} 7.
Nxe4 {[%clk 0:00:24.3]} 7... Nb4 {[%clk 0:02:39.7]} 8. Bb1 {[%clk 0:00:23.7]}
8... Bg4 {[%clk 0:02:38.6]} 9. a3 {[%clk 0:00:23]} 9... Nc6 {[%clk 0:02:38]} 10.
h3 {[%clk 0:00:22.7]} 10... Bh5 {[%clk 0:02:37.1]} 11. g4 {[%clk 0:00:22.4]}
11... Bg6 {[%clk 0:02:35.7]} 12. Nxf6+ {[%clk 0:00:21.4]} 12... Qxf6 {[%clk
0:02:35.3]} 13. Bxg6+ {[%clk 0:00:21.8]} 13... Qxg6 {[%clk 0:02:34.9]} 14. Nh4
{[%clk 0:00:21.8]} 14... Qf6 {[%clk 0:02:27]} 15. Qf3 {[%clk 0:00:22.1]} 15...
Qxh4 {[%clk 0:02:23.2]} 16. d3 {[%clk 0:00:22.4]} 16... Nd4 {[%clk 0:02:15.6]}
17. Qxb7 {[%clk 0:00:22.3]} 17... Qd8 {[%clk 0:02:11.1]} 18. Be3 {[%clk
0:00:20.6]} 18... Ne2+ {[%clk 0:02:03.8]} 19. Kg2 {[%clk 0:00:21.1]} 19... Be7
{[%clk 0:02:01.2]} 20. Rfe1 {[%clk 0:00:20.6]} 20... Nf4+ {[%clk 0:01:57.5]} 21.
Bxf4 {[%clk 0:00:20.8]} 21... exf4 {[%clk 0:01:57]} 22. Qc6+ {[%clk 0:00:21.4]}
22... Qd7 {[%clk 0:01:54.7]} 23. Qxa8+ {[%clk 0:00:21.4]} 23... Qd8 {[%clk
0:01:51.4]} 24. Qc6+ {[%clk 0:00:21.6]} 24... Kf7 {[%clk 0:01:50.5]} 25. Qd5+
{[%clk 0:00:22]} 25... Kf8 {[%clk 0:01:48.1]} 26. Qf5+ {[%clk 0:00:22.4]} 26...
Bf6 {[%clk 0:01:46.4]} 27. Qxf4 {[%clk 0:00:22]} 27... Qa8+ {[%clk 0:01:46.1]}
28. Qf3 {[%clk 0:00:21.8]} 28... Qc8 {[%clk 0:01:36.3]} 29. Re4 {[%clk
0:00:19.3]} 29... h5 {[%clk 0:01:32.3]} 30. g5 {[%clk 0:00:19.2]} 30... Qd8
{[%clk 0:01:07.6]} 31. gxf6 {[%clk 0:00:17.3]} 31... gxf6 {[%clk 0:01:07.6]} 32.
Rae1 {[%clk 0:00:16.4]} 32... Rg8+ {[%clk 0:01:04.5]} 33. Kh2 {[%clk 0:00:15.5]}
33... d5 {[%clk 0:01:01.1]} 34. Re8+ {[%clk 0:00:15.5]} 34... Qxe8 {[%clk
0:01:01.1]} 35. Rxe8+ {[%clk 0:00:15.9]} 35... Kxe8 {[%clk 0:01:01.8]} 36. Qxd5
{[%clk 0:00:16.2]} 36... Rg5 {[%clk 0:00:59.3]} 37. Qe6+ {[%clk 0:00:15.6]}
37... Kf8 {[%clk 0:00:54.5]} 38. Qxf6+ {[%clk 0:00:16.1]} 38... Kg8 {[%clk
0:00:54.3]} 39. Qxg5+ {[%clk 0:00:16.4]} 39... Kf7 {[%clk 0:00:53.8]} 40. Qxh5+
{[%clk 0:00:16.2]} 40... Kf6 {[%clk 0:00:54.2]} 41. Qg4 {[%clk 0:00:16.9]} 41...
a5 {[%clk 0:00:49.6]} 42. h4 {[%clk 0:00:17.8]} 42... a4 {[%clk 0:00:49.4]} 43.
h5 {[%clk 0:00:18.2]} 43... c5 {[%clk 0:00:49.6]} 44. h6 {[%clk 0:00:19.1]}
44... Kf7 {[%clk 0:00:48.4]} 45. h7 {[%clk 0:00:19]} 45... Ke7 {[%clk
0:00:46.4]} 46. h8=Q {[%clk 0:00:19.2]} 46... Kf7 {[%clk 0:00:45.7]} 47. Qh7+
{[%clk 0:00:19.4]} 47... Kf6 {[%clk 0:00:45.4]} 48. Qh6+ {[%clk 0:00:19.5]}
48... Ke5 {[%clk 0:00:44.2]} 49. Qhh5+ {[%clk 0:00:19.7]} 49... Kd6 {[%clk
0:00:41.9]} 50. Qgg6+ {[%clk 0:00:20.6]} 50... Kc7 {[%clk 0:00:41.3]} 51. Qhh7+
{[%clk 0:00:21.5]} 51... Kb8 {[%clk 0:00:40.3]} 52. Qb6+ {[%clk 0:00:20.7]}
52... Ka8 {[%clk 0:00:39]} 53. Qa6+ {[%clk 0:00:21.2]} 53... Kb8 {[%clk
0:00:38.6]} 54. Qab7# {[%clk 0:00:21.7]} 1-0

[Event "Late-Titled-Tuesday-Blitz-January-23-2024"]
[Site "Chess.com"]
[Date "2024.01.23"]
[Round "11"]
[White "alexgo05"]
[Black "IraZyne"]
[Result "0-1"]
[WhiteElo "2358"]
[BlackElo "2238"]
[TimeControl "180+1"]
[EndTime "16:02:41 PST"]
[Termination "IraZyne won on time"]

1. Nf3 {[%clk 0:02:59.8]} 1... d5 {[%clk 0:02:59.2]} 2. b3 {[%clk 0:03:00.1]}
2... f6 {[%clk 0:02:57.5]} 3. Bb2 {[%clk 0:02:59.5]} 3... e5 {[%clk 0:02:56.7]}
4. d4 {[%clk 0:02:52.6]} 4... e4 {[%clk 0:02:56.1]} 5. Nfd2 {[%clk 0:02:52.5]}
5... c6 {[%clk 0:02:55.7]} 6. c4 {[%clk 0:02:51]} 6... Be6 {[%clk 0:02:53.4]} 7.
e3 {[%clk 0:02:48.4]} 7... f5 {[%clk 0:02:53.4]} 8. Nc3 {[%clk 0:02:43.4]} 8...
Nf6 {[%clk 0:02:51.4]} 9. Be2 {[%clk 0:02:43.5]} 9... Bd6 {[%clk 0:02:51.2]} 10.
Qc2 {[%clk 0:02:31.9]} 10... Nbd7 {[%clk 0:02:48]} 11. cxd5 {[%clk 0:02:30]}
11... cxd5 {[%clk 0:02:46.5]} 12. Nb5 {[%clk 0:02:30.5]} 12... Bb8 {[%clk
0:02:46.2]} 13. Rc1 {[%clk 0:02:29.1]} 13... O-O {[%clk 0:02:38.9]} 14. Nc7
{[%clk 0:02:28.7]} 14... Bxc7 {[%clk 0:02:29]} 15. Qxc7 {[%clk 0:02:29.6]} 15...
Qe8 {[%clk 0:02:08.6]} 16. Qa5 {[%clk 0:02:26.5]} 16... Qg6 {[%clk 0:02:06]} 17.
g3 {[%clk 0:02:10.7]} 17... b6 {[%clk 0:02:01.2]} 18. Qa6 {[%clk 0:02:03.5]}
18... h5 {[%clk 0:01:53.8]} 19. h4 {[%clk 0:02:02.5]} 19... Ng4 {[%clk
0:01:53.8]} 20. Rc6 {[%clk 0:01:50]} 20... Qf7 {[%clk 0:01:43.5]} 21. Ba3 {[%clk
0:01:25.8]} 21... Rfe8 {[%clk 0:01:36.9]} 22. Bd6 {[%clk 0:01:25.5]} 22... Ndf6
{[%clk 0:01:28.8]} 23. O-O {[%clk 0:01:17.1]} 23... Bc8 {[%clk 0:01:12.6]} 24.
Qa3 {[%clk 0:01:14.5]} 24... Bd7 {[%clk 0:01:12]} 25. Rc7 {[%clk 0:01:14.3]}
25... Qe6 {[%clk 0:01:12.1]} 26. Rfc1 {[%clk 0:01:10]} 26... a5 {[%clk
0:01:09.1]} 27. Rb7 {[%clk 0:01:04.7]} 27... b5 {[%clk 0:01:06.3]} 28. Bf4
{[%clk 0:00:58.7]} 28... b4 {[%clk 0:01:04.2]} 29. Qb2 {[%clk 0:00:58.7]} 29...
Rec8 {[%clk 0:00:54.4]} 30. Rcc7 {[%clk 0:00:58.3]} 30... Rxc7 {[%clk
0:00:54.2]} 31. Rxc7 {[%clk 0:00:59.2]} 31... Rc8 {[%clk 0:00:51.8]} 32. Rxc8+
{[%clk 0:00:39]} 32... Bxc8 {[%clk 0:00:51.1]} 33. Qc2 {[%clk 0:00:37.3]} 33...
Ba6 {[%clk 0:00:48.7]} 34. Bxa6 {[%clk 0:00:24.7]} 34... Qxa6 {[%clk 0:00:48]}
35. Nf1 {[%clk 0:00:22.6]} 35... Kh7 {[%clk 0:00:43.7]} 36. Be5 {[%clk
0:00:14.1]} 36... Kg6 {[%clk 0:00:38.6]} 37. Bxf6 {[%clk 0:00:13.5]} 37... Nxf6
{[%clk 0:00:34.5]} 38. Nh2 {[%clk 0:00:05.7]} 38... Qb5 {[%clk 0:00:30.4]} 39.
Qc1 {[%clk 0:00:04.5]} 39... Qe2 {[%clk 0:00:28.5]} 40. Kg2 {[%clk 0:00:03.7]}
40... Qxa2 {[%clk 0:00:27.4]} 41. Qd1 {[%clk 0:00:03.4]} 41... Qb2 {[%clk
0:00:23.1]} 0-1

[Event "Late-Titled-Tuesday-Blitz-January-23-2024"]
[Site "Chess.com"]
[Date "2024.01.23"]
[Round "11"]
[White "Knjazj"]
[Black "IsaqueGoncalvesSanto"]
[Result "0-1"]
[WhiteElo "2027"]
[BlackElo "1810"]
[TimeControl "180+1"]
[EndTime "16:02:41 PST"]
[Termination "IsaqueGoncalvesSanto won by checkmate"]

1. e4 {[%clk 0:03:00.9]} 1... e6 {[%clk 0:02:56.8]} 2. Nf3 {[%clk 0:03:01.3]}
2... d5 {[%clk 0:02:54.8]} 3. exd5 {[%clk 0:03:00.3]} 3... exd5 {[%clk
0:02:54.6]} 4. d4 {[%clk 0:03:00.9]} 4... Bd6 {[%clk 0:02:53.9]} 5. Bd3 {[%clk
0:02:58.7]} 5... Ne7 {[%clk 0:02:53.8]} 6. h3 {[%clk 0:02:57.8]} 6... O-O {[%clk
0:02:52.8]} 7. Bg5 {[%clk 0:02:56.3]} 7... f6 {[%clk 0:02:52.4]} 8. Bh4 {[%clk
0:02:55.4]} 8... Nf5 {[%clk 0:02:51.7]} 9. O-O {[%clk 0:02:43.3]} 9... Nc6
{[%clk 0:02:38.3]} 10. c3 {[%clk 0:02:40.7]} 10... Nce7 {[%clk 0:02:35.3]} 11.
g4 {[%clk 0:02:31.3]} 11... Nxh4 {[%clk 0:02:23.2]} 12. Nxh4 {[%clk 0:02:30.7]}
12... Bf4 {[%clk 0:02:10.9]} 13. Ng2 {[%clk 0:02:23.9]} 13... Qd6 {[%clk
0:01:56.6]} 14. Qf3 {[%clk 0:02:18.4]} 14... Bh6 {[%clk 0:01:49]} 15. Re1 {[%clk
0:02:08.2]} 15... Bd7 {[%clk 0:01:45]} 16. Na3 {[%clk 0:02:07.3]} 16... c6
{[%clk 0:01:43.1]} 17. Nc2 {[%clk 0:02:06.8]} 17... Be8 {[%clk 0:01:36.3]} 18.
Re2 {[%clk 0:02:04.2]} 18... Bg6 {[%clk 0:01:24.3]} 19. Rae1 {[%clk 0:02:00.6]}
19... Bxd3 {[%clk 0:01:02.6]} 20. Qxd3 {[%clk 0:01:59.6]} 20... Ng6 {[%clk
0:00:48.8]} 21. Re6 {[%clk 0:01:56]} 21... Qd7 {[%clk 0:00:48.4]} 22. Qe2 {[%clk
0:01:51.7]} 22... Bf4 {[%clk 0:00:42.7]} 23. Qf3 {[%clk 0:01:31.7]} 23... Bc7
{[%clk 0:00:39.3]} 24. h4 {[%clk 0:01:23.5]} 24... Rad8 {[%clk 0:00:18.7]} 25.
h5 {[%clk 0:01:21.9]} 25... Ne5 {[%clk 0:00:18.5]} 26. Qf5 {[%clk 0:01:17.5]}
26... g6 {[%clk 0:00:13.8]} 27. hxg6 {[%clk 0:01:17.1]} 27... hxg6 {[%clk
0:00:13.6]} 28. Qf4 {[%clk 0:01:03.7]} 28... Qxe6 {[%clk 0:00:13.3]} 29. dxe5
{[%clk 0:01:03.2]} 29... fxe5 {[%clk 0:00:13.3]} 30. Qg5 {[%clk 0:01:01.8]}
30... e4 {[%clk 0:00:13.1]} 31. Nge3 {[%clk 0:00:58.2]} 31... Qd6 {[%clk
0:00:12.1]} 32. Kf1 {[%clk 0:00:57]} 32... Qh2 {[%clk 0:00:11.5]} 33. Ke2 {[%clk
0:00:56.9]} 33... Qxf2+ {[%clk 0:00:10.8]} 34. Kd1 {[%clk 0:00:57.4]} 34... Bf4
{[%clk 0:00:10.7]} 35. Qxg6+ {[%clk 0:00:56.9]} 35... Kh8 {[%clk 0:00:10.8]} 36.
Qh5+ {[%clk 0:00:56.5]} 36... Kg7 {[%clk 0:00:10]} 37. Nf5+ {[%clk 0:00:55.5]}
37... Rxf5 {[%clk 0:00:09.7]} 38. Re2 {[%clk 0:00:52.3]} 38... Qxe2+ {[%clk
0:00:08.1]} 39. Kxe2 {[%clk 0:00:51.4]} 39... Rxh5 {[%clk 0:00:08.5]} 40. Nd4
{[%clk 0:00:51.2]} 40... Re8 {[%clk 0:00:07.8]} 41. b3 {[%clk 0:00:48.7]} 41...
Rh2+ {[%clk 0:00:07.8]} 42. Kd1 {[%clk 0:00:46.3]} 42... Rxa2 {[%clk 0:00:07.6]}
43. Nf5+ {[%clk 0:00:44.6]} 43... Kf6 {[%clk 0:00:07.3]} 44. Nd4 {[%clk
0:00:43.6]} 44... Rh8 {[%clk 0:00:07.2]} 45. Nc2 {[%clk 0:00:43.7]} 45... Rxc2
{[%clk 0:00:07.1]} 46. Kxc2 {[%clk 0:00:43.5]} 46... Rh2+ {[%clk 0:00:07.6]} 47.
Kd1 {[%clk 0:00:43.5]} 47... Kg5 {[%clk 0:00:07.4]} 48. c4 {[%clk 0:00:43.2]}
48... Kxg4 {[%clk 0:00:07.5]} 49. cxd5 {[%clk 0:00:42]} 49... cxd5 {[%clk
0:00:07.8]} 50. b4 {[%clk 0:00:41.6]} 50... d4 {[%clk 0:00:08.1]} 51. b5 {[%clk
0:00:41.3]} 51... d3 {[%clk 0:00:08.4]} 52. b6 {[%clk 0:00:41.9]} 52... Rh1#
{[%clk 0:00:08.3]} 0-1

[Event "Late-Titled-Tuesday-Blitz-January-23-2024"]
[Site "Chess.com"]
[Date "2024.01.23"]
[Round "11"]
[White "ImportedItalianMaple"]
[Black "Nouali_Mohamed"]
[Result "1-0"]
[WhiteElo "2456"]
[BlackElo "2534"]
[TimeControl "180+1"]
[EndTime "16:02:44 PST"]
[Termination "ImportedItalianMaple won on time"]

1. e4 {[%clk 0:03:00.9]} 1... c5 {[%clk 0:02:59.7]} 2. Nf3 {[%clk 0:03:00.9]}
2... Nc6 {[%clk 0:03:00.1]} 3. d4 {[%clk 0:03:01]} 3... cxd4 {[%clk 0:03:01]} 4.
Nxd4 {[%clk 0:03:01.8]} 4... g6 {[%clk 0:03:01.3]} 5. c4 {[%clk 0:03:00.2]} 5...
Bg7 {[%clk 0:03:01.4]} 6. Be3 {[%clk 0:02:57.9]} 6... Nf6 {[%clk 0:03:01]} 7.
Nc3 {[%clk 0:02:57.8]} 7... O-O {[%clk 0:03:01]} 8. Be2 {[%clk 0:02:46]} 8... d6
{[%clk 0:02:59.9]} 9. O-O {[%clk 0:02:42.8]} 9... Nxd4 {[%clk 0:03:00.1]} 10.
Bxd4 {[%clk 0:02:37.7]} 10... Be6 {[%clk 0:03:01]} 11. Qd2 {[%clk 0:02:30.3]}
11... Qa5 {[%clk 0:03:00.5]} 12. Rfd1 {[%clk 0:02:22.9]} 12... Rfc8 {[%clk
0:02:59.6]} 13. b3 {[%clk 0:02:19.2]} 13... a6 {[%clk 0:02:59.9]} 14. Nd5 {[%clk
0:02:14.3]} 14... Qxd2 {[%clk 0:02:59.8]} 15. Nxf6+ {[%clk 0:02:12.9]} 15...
Bxf6 {[%clk 0:02:59.9]} 16. Rxd2 {[%clk 0:02:13.3]} 16... Bxd4 {[%clk
0:02:48.9]} 17. Rxd4 {[%clk 0:02:13.4]} 17... b5 {[%clk 0:02:42.4]} 18. cxb5
{[%clk 0:02:04.5]} 18... axb5 {[%clk 0:02:43.3]} 19. Bxb5 {[%clk 0:02:04.9]}
19... Bxb3 {[%clk 0:02:43.6]} 20. a4 {[%clk 0:01:58.6]} 20... Rc5 {[%clk
0:01:55.4]} 21. Rb4 {[%clk 0:01:45.8]} 21... Be6 {[%clk 0:00:49.8]} 22. a5
{[%clk 0:01:19.6]} 22... Ra7 {[%clk 0:00:44.6]} 23. a6 {[%clk 0:01:14.6]} 23...
Bc8 {[%clk 0:00:43.9]} 24. Bf1 {[%clk 0:01:09.8]} 24... Kg7 {[%clk 0:00:38.2]}
25. h3 {[%clk 0:00:37.5]} 25... h5 {[%clk 0:00:36.6]} 26. Rb8 {[%clk 0:00:37.3]}
26... Rcc7 {[%clk 0:00:36.2]} 27. Rb6 {[%clk 0:00:32.1]} 27... Kf6 {[%clk
0:00:32.9]} 28. g3 {[%clk 0:00:29.9]} 28... g5 {[%clk 0:00:26.5]} 29. Re1 {[%clk
0:00:23.8]} 29... Rc5 {[%clk 0:00:20.2]} 30. f4 {[%clk 0:00:22.6]} 30... gxf4
{[%clk 0:00:18]} 31. gxf4 {[%clk 0:00:23.5]} 31... Kg7 {[%clk 0:00:15.6]} 32.
Kh2 {[%clk 0:00:19.2]} 32... h4 {[%clk 0:00:15.1]} 33. Re2 {[%clk 0:00:15.9]}
33... Ra5 {[%clk 0:00:12.5]} 34. Rg2+ {[%clk 0:00:15.1]} 34... Kh7 {[%clk
0:00:08.4]} 35. Rg5 {[%clk 0:00:14.1]} 35... Bxa6 {[%clk 0:00:06.2]} 36. Rxa5
{[%clk 0:00:13.4]} 1-0